bitfinex-derivatives/quotes_SOLF0:USTF0_20230105
["timestamp","ask_amount","ask_price","bid_price","bid_amount"]
[1672897918851,37.533,13.325,13.316,10.0]
[1672897919060,37.59809811,13.325,13.316,10.06095305]
[1672897919902,37.59809811,13.325,13.318,37.553]
[1672897920113,37.59809811,13.325,13.319,10.0]
[1672897920741,112.66509811,13.325,13.319,10.0]
[1672897921573,112.66509811,13.325,13.319,37.55]
[1672897921792,14.99,13.324,13.32,10.0]
[1672897922950,52.528,13.324,13.32,47.546]
[1672897923577,52.528,13.324,13.32,10.0]
[1672897924523,14.99,13.324,13.32,47.546]
[1672897925568,0.06509811,13.325,13.32,47.546]
[1672897925889,37.537,13.324,13.32,47.546]
[1672897926093,37.537,13.324,13.32,37.546]
[1672897926310,0.06509811,13.325,13.32,37.547]
[1672897926513,0.06509811,13.325,13.321,10.0]
[1672897926724,37.536,13.324,13.321,47.543]
[1672897926939,37.536,13.324,13.321,10.0]
[1672897927464,37.536,13.324,13.318,10.0]
[1672897927670,14.95,13.32,13.316,0.06095305]
[1672897927879,14.99,13.318,13.316,0.06095305]
[1672897928094,14.99,13.318,13.314,10.0]
[1672897928408,14.99,13.318,13.315,13.80830014]
[1672897929881,14.99,13.318,13.315,51.36930014]
[1672897930725,14.99,13.318,13.315,37.561]
[1672897931041,52.543,13.318,13.315,37.561]
[1672897931459,14.99,13.318,13.315,37.561]
[1672897931881,14.99,13.318,13.316,10.0]
[1672897932090,14.99,13.318,13.316,47.558]
[1672897932615,14.89,13.321,13.316,47.558]
[1672897932826,14.89,13.321,13.316,47.46264232]
[1672897933876,52.436,13.321,13.316,47.46264232]
[1672897934194,14.89,13.321,13.316,47.46264232]
[1672897934508,14.89,13.321,13.316,122.58064232]
[1672897934717,52.435,13.321,13.316,47.46264232]
[1672897935767,52.435,13.321,13.316,37.558]
[1672897935979,52.435,13.321,13.315,10.0]
[1672897936503,52.435,13.321,13.313,10.0]
[1672897936927,52.435,13.321,13.316,37.557]
[1672897937129,52.435,13.321,13.317,10.0]
[1672897937870,52.435,13.321,13.316,37.557]
[1672897939660,37.545,13.321,13.316,37.557]
[1672897940605,44.6,13.319,13.313,10.0]
[1672897940813,37.553,13.318,13.313,10.0]
[1672897941019,44.65,13.316,13.312,0.06634274]
[1672897941338,37.567,13.313,13.312,0.06634274]
[1672897941549,37.567,13.313,13.31,37.575]
[1672897942183,37.567,13.313,13.308,37.64504146]
[1672897942600,37.567,13.313,13.308,0.06704146]
[1672897945858,37.576,13.31,13.308,0.06704146]
[1672897946064,37.576,13.31,13.304,0.06786509]
[1672897946484,44.64,13.306,13.299,10.0]
[1672897946695,37.585,13.307,13.299,10.0]
[1672897946912,119.795,13.31,13.3,49.95845811]
[1672897947122,37.585,13.307,13.301,10.0]
[1672897947541,37.585,13.307,13.302,13.82045334]
[1672897947752,37.585,13.307,13.303,10.0]
[1672897947963,0.06752664,13.309,13.303,47.594]
[1672897948276,37.582,13.308,13.304,13.82045334]
[1672897948482,0.06752664,13.309,13.304,51.41245334]
[1672897948910,0.06752664,13.309,13.304,37.592]
[1672897949645,0.06752664,13.309,13.305,13.82025218]
[1672897949850,0.06752664,13.309,13.306,10.0]
[1672897950170,37.581,13.308,13.306,10.0]
[1672897950488,37.581,13.308,13.304,37.592]
[1672897951016,37.581,13.308,13.305,13.8200603]
[1672897952377,37.581,13.308,13.305,23.8200603]
[1672897952587,37.581,13.308,13.305,13.8200603]
[1672897952794,37.581,13.308,13.303,37.594]
[1672897953216,37.581,13.308,13.304,13.82016521]
[1672897953428,37.581,13.308,13.304,23.82016521]
[1672897953743,37.581,13.308,13.305,13.82016521]
[1672897954158,37.581,13.308,13.304,10.0]
[1672897954583,37.581,13.308,13.305,13.82016521]
[1672897958046,82.687,13.306,13.305,6.521e-05]
[1672897958261,37.587,13.306,13.301,0.06097379]
[1672897958467,0.06273671,13.308,13.301,37.65897379]
[1672897958787,37.64373671,13.308,13.301,37.65897379]
[1672897960049,112.80673671,13.308,13.301,37.65897379]
[1672897960255,112.80673671,13.308,13.301,0.06097379]
[1672897960576,157.90673671,13.308,13.301,0.06097379]
[1672897964779,157.90673671,13.308,13.301,37.66197379]
[1672897965515,157.90673671,13.308,13.302,10.0]
[1672897965726,112.80673671,13.308,13.302,47.596]
[1672897966773,112.80673671,13.308,13.301,0.06097379]
[1672897967719,37.64373671,13.308,13.301,0.06097379]
[1672897967931,37.64373671,13.308,13.302,37.598]
[1672897968139,0.06273671,13.308,13.303,10.0]
[1672897968563,0.06273671,13.308,13.304,13.82195441]
[1672897968876,0.06273671,13.308,13.306,37.587]
[1672897969081,37.577,13.31,13.306,37.587]
[1672897969289,37.577,13.31,13.307,10.0]
[1672897970034,37.577,13.31,13.306,37.587]
[1672897970769,37.577,13.31,13.304,0.06356061]
[1672897971190,45.1,13.309,13.304,13.88542654]
[1672897971502,112.749,13.308,13.304,0.06356061]
[1672897972449,44.67,13.307,13.304,0.06356061]
[1672897972655,0.15641157,13.304,13.301,0.06930015]
[1672897972974,0.15641157,13.304,13.298,10.07088145]
[1672897973605,0.15641157,13.304,13.299,112.819]
[1672897973811,0.15641157,13.304,13.3,10.0]
[1672897974022,0.15641157,13.304,13.301,37.6]
[1672897974230,0.15641157,13.304,13.302,10.0]
[1672897974864,0.15641157,13.304,13.301,10.0]
[1672897975073,0.15641157,13.304,13.3,10.0]
[1672897975284,37.74941157,13.304,13.3,10.0]
[1672897976545,37.74941157,13.304,13.298,10.07088145]
[1672897976756,37.74941157,13.304,13.299,37.605]
[1672897976965,37.74941157,13.304,13.3,10.0]
[1672897977590,37.74941157,13.304,13.3,9.92426902]
[1672897978019,37.74941157,13.304,13.299,10.0]
[1672897978224,37.74941157,13.304,13.299,47.606]
[1672897978434,52.75941157,13.304,13.298,0.07088145]
[1672897978954,37.602,13.301,13.298,0.07088145]
[1672897979163,112.806,13.301,13.295,0.06609856]
[1672897979694,112.806,13.301,13.295,13.89419457]
[1672897981267,37.602,13.301,13.296,10.0]
[1672897981692,37.602,13.301,13.297,13.82809601]
[1672897981903,37.602,13.301,13.298,10.0]
[1672897982113,112.804,13.301,13.298,10.0]
[1672897982321,37.602,13.301,13.298,10.0]
[1672897982632,15.03,13.302,13.298,10.0]
[1672897982957,37.602,13.301,13.296,10.0]
[1672897983270,15.23169482,13.304,13.296,10.0]
[1672897983476,37.602,13.301,13.297,13.82837895]
[1672897983691,15.23169482,13.304,13.298,37.609]
[1672897983906,15.23169482,13.304,13.299,10.0]
[1672897984217,37.602,13.301,13.299,10.0]
[1672897984633,37.602,13.301,13.296,10.0]
[1672897984843,15.23169482,13.304,13.298,37.609]
[1672897985055,15.23169482,13.304,13.299,10.0]
[1672897985897,52.82569482,13.304,13.299,10.0]
[1672897986206,0.22169482,13.304,13.299,10.0]
[1672897987048,15.01,13.313,13.3,13.82185086]
[1672897987260,15.01,13.313,13.301,10.0]
[1672897987466,15.01,13.313,13.302,13.82185086]
[1672897987679,37.566,13.314,13.303,112.779]
[1672897987894,37.566,13.314,13.303,122.779]
[1672897988101,0.06080224,13.313,13.304,10.06719034]
[1672897988524,0.06080224,13.313,13.307,10.0]
[1672897989364,0.06080224,13.313,13.309,10.0]
[1672897989776,0.06080224,13.313,13.31,37.575]
[1672897989987,37.565,13.314,13.31,37.575]
[1672897990197,37.565,13.314,13.311,10.0]
[1672897990942,37.565,13.314,13.31,37.575]
[1672897992414,37.565,13.314,13.309,47.578]
[1672897992729,37.563,13.315,13.309,10.0]
[1672897993044,0.0650028,13.316,13.309,122.735]
[1672897993466,37.562,13.315,13.309,47.578]
[1672897997570,37.562,13.315,13.309,122.735]
[1672897997886,37.6250028,13.316,13.309,122.735]
[1672897998410,0.0650028,13.316,13.309,122.735]
[1672898001244,45.01,13.321,13.31,10.0]
[1672898001459,75.065,13.326,13.313,112.699]
[1672898001669,75.065,13.326,13.314,10.0]
[1672898002087,112.61,13.324,13.317,37.554]
[1672898002297,112.61,13.324,13.316,10.06513243]
[1672898002508,45.05,13.323,13.316,10.06513243]
[1672898002719,37.545,13.321,13.316,47.62313243]
[1672898003874,37.545,13.321,13.316,0.06513243]
[1672898005559,37.545,13.321,13.316,10.06513243]
[1672898008610,37.545,13.321,13.316,47.62313243]
[1672898008924,37.542,13.322,13.316,47.62313243]
[1672898009341,75.14021484,13.325,13.316,122.74113243]
[1672898011023,37.541,13.323,13.316,122.74113243]
[1672898011543,37.44355505,13.323,13.316,122.74113243]
[1672898014169,82.45355505,13.323,13.316,0.06513243]
[1672898014390,44.83,13.318,13.316,0.06513243]
[1672898014593,82.566,13.317,13.312,0.06039586]
[1672898014804,82.566,13.317,13.31,10.07061816]
[1672898016591,82.566,13.317,13.31,0.07061816]
[1672898018170,44.83,13.315,13.31,0.07061816]
[1672898018484,112.698,13.314,13.31,0.07061816]
[1672898021851,44.69,13.312,13.304,10.0]
[1672898022061,112.731,13.31,13.304,10.0]
[1672898024049,0.06335731,13.312,13.304,10.0]
[1672898025102,0.06335731,13.312,13.304,47.592]
[1672898025837,37.63335731,13.312,13.304,47.592]
[1672898035095,37.63335731,13.312,13.304,37.38762489]
[1672898037829,112.77335731,13.312,13.304,37.38762489]
[1672898043923,37.63335731,13.312,13.305,10.0]
[1672898044133,37.63335731,13.312,13.307,37.584]
[1672898044444,37.63335731,13.312,13.308,10.0]
[1672898044760,37.63335731,13.312,13.309,37.578]
[1672898044973,37.57,13.312,13.31,10.0]
[1672898045917,37.57,13.312,13.309,37.578]
[1672898049279,37.57,13.312,13.308,37.58]
[1672898050225,37.57,13.312,13.307,10.0]
[1672898050431,37.57,13.312,13.306,75.173]
[1672898052012,37.57,13.312,13.308,37.58]
[1672898052319,37.57,13.312,13.309,10.0]
[1672898053063,37.57,13.312,13.308,37.58]
[1672898054010,37.57,13.312,13.307,37.583]
[1672898054219,52.6,13.312,13.307,37.583]
[1672898055271,52.6,13.312,13.307,37.584]
[1672898055481,52.6,13.312,13.308,10.0]
[1672898056323,52.6,13.312,13.306,37.586]
[1672898057268,52.6,13.312,13.305,37.65457974]
[1672898058110,7.5,13.311,13.305,37.65457974]
[1672898058424,37.578,13.31,13.305,37.65457974]
[1672898063681,37.578,13.31,13.305,0.06657974]
[1672898068620,7.5,13.309,13.305,0.06657974]
[1672898068832,37.582,13.308,13.305,0.06657974]
[1672898069036,37.582,13.308,13.303,37.594]
[1672898069248,37.582,13.308,13.302,37.66166033]
[1672898072507,112.745,13.308,13.302,0.06466033]
[1672898072827,0.06768367,13.302,13.297,75.221]
[1672898073032,0.06768367,13.302,13.299,37.606]
[1672898073241,0.06768367,13.302,13.3,10.0]
[1672898073563,37.66668367,13.302,13.3,10.0]
[1672898073766,37.66668367,13.302,13.299,37.606]
[1672898074926,37.45219542,13.302,13.3,10.0]
[1672898076186,37.45219542,13.302,13.299,37.606]
[1672898077763,37.45219542,13.302,13.298,37.609]
[1672898077973,37.45219542,13.302,13.299,10.0]
[1672898079760,37.45219542,13.302,13.299,37.606]
[1672898080077,7.51,13.304,13.3,10.0]
[1672898080599,37.601,13.302,13.298,10.0]
[1672898081542,37.601,13.302,13.296,0.06252528]
[1672898081757,7.51,13.301,13.296,37.67652528]
[1672898081970,37.605,13.3,13.296,0.06252528]
[1672898083440,7.5,13.297,13.296,0.06252528]
[1672898083650,45.112,13.297,13.294,13.8292967]
[1672898084174,45.112,13.297,13.292,0.06165631]
[1672898084908,45.112,13.297,13.292,37.68665631]
[1672898085432,45.112,13.297,13.293,13.8292967]
[1672898085748,45.112,13.297,13.294,10.0]
[1672898086168,45.112,13.297,13.293,23.8292967]
[1672898086488,45.112,13.297,13.292,37.68665631]
[1672898086907,45.112,13.297,13.293,13.8302932]
[1672898087222,45.112,13.297,13.294,10.0]
[1672898087537,45.112,13.297,13.293,13.8302932]
[1672898087538,7.5,13.295,13.293,13.8302932]
[1672898087743,45.131,13.294,13.292,0.06165631]
[1672898088061,7.5,13.293,13.289,37.633]
[1672898088267,45.126,13.293,13.29,10.0]
[1672898088798,45.126,13.293,13.289,47.633]
[1672898089429,45.126,13.293,13.289,37.5518499]
[1672898090372,45.126,13.293,13.288,37.70074947]
[1672898091938,45.126,13.293,13.288,0.06274947]
[1672898095526,45.126,13.293,13.288,37.70074947]
[1672898096473,45.126,13.293,13.288,0.06274947]
[1672898100673,7.5,13.294,13.288,47.70074947]
[1672898100989,7.5,13.294,13.289,10.0]
[1672898101200,7.47,13.295,13.29,112.896]
[1672898101406,0.07110495,13.296,13.291,10.0]
[1672898101728,0.07110495,13.296,13.292,13.83169368]
[1672898102040,0.07110495,13.296,13.293,10.0]
[1672898102249,0.06848514,13.299,13.294,112.863]
[1672898102460,0.06878529,13.301,13.295,10.0]
[1672898103194,0.06878529,13.301,13.296,37.613]
[1672898103405,0.06878529,13.301,13.297,10.0]
[1672898103825,0.06878529,13.301,13.298,37.609]
[1672898104036,37.599,13.302,13.299,10.0]
[1672898105815,37.596,13.303,13.299,47.606]
[1672898107505,0.0638779,13.304,13.299,47.606]
[1672898107715,0.0038779,13.304,13.299,47.606]
[1672898109920,37.5968779,13.304,13.299,47.606]
[1672898110339,0.0038779,13.304,13.299,47.606]
[1672898115906,0.0038779,13.304,13.299,97.56445811]
[1672898116116,15.03,13.311,13.299,97.56445811]
[1672898116117,15.03,13.311,13.3,23.82339859]
[1672898116323,37.574,13.311,13.303,112.779]
[1672898116530,37.574,13.311,13.304,10.0]
[1672898118115,37.574,13.311,13.307,10.0]
[1672898119903,37.574,13.311,13.308,37.581]
[1672898120109,37.574,13.311,13.309,10.0]
[1672898121057,37.63162271,13.312,13.309,47.577]
[1672898121269,15.03,13.313,13.309,47.577]
[1672898121789,0.06509484,13.315,13.309,47.577]
[1672898122108,0.00509484,13.315,13.309,47.577]
[1672898123048,7.51,13.311,13.306,10.06179701]
[1672898123264,7.49,13.31,13.306,0.06179701]
[1672898124946,45.067,13.31,13.306,37.64779701]
[1672898126420,45.067,13.31,13.306,0.06179701]
[1672898126622,45.067,13.31,13.306,9.701e-05]
[1672898126623,7.51,13.307,13.306,9.701e-05]
[1672898126944,45.094,13.307,13.298,10.0]
[1672898127154,7.49,13.304,13.298,10.0]
[1672898127368,37.598,13.303,13.299,37.606]
[1672898127680,37.598,13.303,13.3,10.0]
[1672898128627,37.598,13.303,13.3,47.602]
[1672898128942,37.598,13.303,13.3,10.0]
[1672898131149,37.598,13.303,13.3,47.604]
[1672898132088,7.49,13.304,13.3,47.604]
[1672898132831,45.083,13.304,13.3,47.604]
[1672898133041,45.083,13.304,13.3,10.0]
[1672898134934,45.083,13.304,13.3,47.604]
[1672898135144,45.083,13.304,13.3,37.604]
[1672898135773,7.49,13.304,13.301,10.0]
[1672898135983,7.49,13.304,13.301,47.599]
[1672898137248,45.083,13.304,13.301,47.599]
[1672898137670,45.083,13.304,13.301,10.0]
[1672898138616,37.593,13.304,13.301,10.0]
[1672898138826,7.49,13.305,13.301,47.6]
[1672898140932,7.49,13.305,13.301,122.802]
[1672898141143,7.49,13.305,13.301,122.671787]
[1672898143868,0.06887243,13.306,13.301,122.671787]
[1672898145544,37.65587243,13.306,13.301,122.671787]
[1672898146293,37.65587243,13.306,13.301,112.802]
[1672898146492,37.47342726,13.306,13.302,10.0]
[1672898146706,7.49,13.304,13.302,10.0]
[1672898146917,7.49,13.304,13.301,37.6]
[1672898147338,7.49,13.304,13.3,37.602]
[1672898147546,7.49,13.304,13.301,10.0]
[1672898147863,7.51,13.302,13.299,0.0713035]
[1672898148183,7.48,13.3,13.297,37.612]
[1672898151230,7.51,13.302,13.298,10.0]
[1672898151436,7.51,13.302,13.299,37.606]
[1672898151645,37.66211899,13.303,13.299,37.606]
[1672898151855,37.66211899,13.303,13.3,10.0]
[1672898152067,37.598,13.303,13.3,10.0]
[1672898152276,7.51,13.302,13.298,10.0]
[1672898152490,37.601,13.301,13.298,10.0]
[1672898152694,7.51,13.302,13.298,10.0]
[1672898152904,45.16884775,13.306,13.299,49.95845811]
[1672898153120,0.07084775,13.306,13.301,37.601]
[1672898153333,0.07084775,13.306,13.302,10.0]
[1672898154060,0.07084775,13.306,13.303,37.595]
[1672898154270,7.45,13.306,13.304,10.0]
[1672898155853,7.45,13.306,13.303,37.595]
[1672898157848,45.038,13.306,13.299,85.27049275]
[1672898158061,7.51,13.303,13.299,0.06149275]
[1672898158584,7.51,13.303,13.299,37.66749275]
[1672898159426,7.51,13.303,13.3,10.0]
[1672898159632,7.51,13.303,13.3,47.42010763]
[1672898161214,7.51,13.303,13.3,37.604]
[1672898161423,7.51,13.303,13.301,10.0]
[1672898162789,7.57045798,13.306,13.301,47.6]
[1672898163521,0.06045798,13.306,13.301,47.6]
[1672898165409,7.55045798,13.306,13.301,37.6]
[1672898165624,7.55045798,13.306,13.301,47.6]
[1672898166250,7.55045798,13.306,13.302,10.0]
[1672898166466,7.55045798,13.306,13.303,37.595]
[1672898166775,7.49,13.306,13.304,10.0]
[1672898166984,0.06265432,13.309,13.304,10.0]
[1672898166985,0.06265432,13.309,13.304,122.776]
[1672898169190,37.562,13.315,13.305,10.0]
[1672898169406,15.02,13.316,13.308,37.581]
[1672898169618,37.565,13.314,13.308,37.581]
[1672898169829,37.565,13.314,13.309,10.0]
[1672898170040,37.565,13.314,13.309,47.577]
[1672898170248,52.535,13.314,13.309,47.577]
[1672898170460,37.565,13.314,13.309,47.577]
[1672898172877,52.585,13.314,13.308,37.58]
[1672898173088,52.585,13.314,13.309,10.0]
[1672898174870,52.585,13.314,13.309,47.578]
[1672898177292,15.02,13.314,13.309,47.578]
[1672898182236,52.586,13.314,13.309,47.578]
[1672898182656,15.02,13.314,13.309,47.578]
[1672898184446,15.02,13.314,13.309,37.578]
[1672898184866,52.584,13.314,13.309,47.578]
[1672898185497,15.02,13.314,13.309,47.578]
[1672898186232,15.02,13.314,13.309,37.578]
[1672898186444,52.584,13.314,13.308,37.581]
[1672898186656,0.14926867,13.309,13.308,37.581]
[1672898187177,0.14926867,13.309,13.306,37.586]
[1672898187599,37.72726867,13.309,13.305,37.589]
[1672898187911,15.02,13.307,13.304,0.07094085]
[1672898188128,15.02,13.308,13.301,75.26812108]
[1672898188440,15.02,13.308,13.302,10.0]
[1672898189071,52.603,13.308,13.3,10.0709215]
[1672898190117,52.603,13.308,13.302,10.0]
[1672898190328,15.02,13.306,13.302,10.0]
[1672898190541,37.59,13.305,13.3,47.6739215]
[1672898191276,37.59,13.305,13.3,0.0709215]
[1672898191492,0.08209579,13.3,13.299,37.606]
[1672898194534,0.08209579,13.3,13.299,112.82]
[1672898194745,0.0645748,13.304,13.3,10.0]
[1672898195058,75.17,13.307,13.3,10.0]
[1672898195059,15.02,13.308,13.302,10.0]
[1672898195268,15.02,13.31,13.302,10.0]
[1672898196110,15.08253342,13.31,13.302,10.0]
[1672898196320,15.08253342,13.31,13.303,112.784]
[1672898196321,37.72826867,13.309,13.303,112.784]
[1672898196634,37.72826867,13.309,13.304,10.0]
[1672898197898,37.72826867,13.309,13.305,37.588]
[1672898198211,37.72826867,13.309,13.306,10.0]
[1672898199894,15.02,13.307,13.303,37.594]
[1672898200104,52.606,13.307,13.303,37.594]
[1672898200944,37.595,13.303,13.293,75.243]
[1672898201154,112.786,13.303,13.297,0.06844155]
[1672898201366,112.786,13.303,13.295,0.06810088]
[1672898201576,112.786,13.303,13.295,37.68410088]
[1672898201785,37.595,13.303,13.296,10.0]
[1672898201998,37.595,13.303,13.296,47.614]
[1672898202520,37.595,13.303,13.296,10.0]
[1672898202833,37.595,13.303,13.295,47.68510088]
[1672898203153,15.02,13.302,13.295,0.06810088]
[1672898203571,15.02,13.302,13.295,37.68610088]
[1672898203780,112.804,13.301,13.295,0.06810088]
[1672898204723,37.602,13.301,13.295,0.06810088]
[1672898204939,37.602,13.301,13.295,37.68610088]
[1672898206307,37.602,13.301,13.296,10.0]
[1672898206520,37.602,13.301,13.297,37.611]
[1672898206832,37.602,13.301,13.298,10.0]
[1672898207462,37.602,13.301,13.296,10.0]
[1672898207883,37.602,13.301,13.298,37.609]
[1672898208727,37.602,13.301,13.298,37.39148497]
[1672898209141,37.602,13.301,13.295,0.06810088]
[1672898209773,37.602,13.301,13.295,37.68510088]
[1672898210505,37.41093261,13.301,13.295,37.68510088]
[1672898210724,112.61293261,13.301,13.296,10.0]
[1672898211035,37.41093261,13.301,13.296,47.613]
[1672898211246,37.41093261,13.301,13.296,10.0]
[1672898212185,37.41093261,13.301,13.295,0.06810088]
[1672898212932,37.41093261,13.301,13.296,37.614]
[1672898213240,37.41093261,13.301,13.297,10.0]
[1672898213661,37.41093261,13.301,13.295,0.06810088]
[1672898215032,37.41093261,13.301,13.295,37.68410088]
[1672898217869,37.41093261,13.301,13.296,10.0]
[1672898218078,37.41093261,13.301,13.297,37.612]
[1672898218289,37.41093261,13.301,13.298,10.0]
[1672898219345,37.41093261,13.301,13.296,10.0]
[1672898219660,37.41093261,13.301,13.295,0.06810088]
[1672898219867,112.61293261,13.301,13.295,0.06810088]
[1672898220076,15.02,13.304,13.295,0.06810088]
[1672898221970,37.602,13.301,13.295,112.92110088]
[1672898222382,14.97,13.297,13.295,0.06810088]
[1672898222592,37.615,13.296,13.284,44.9385]
[1672898222908,15.02,13.295,13.285,10.0]
[1672898223125,37.626,13.292,13.286,37.642]
[1672898223334,37.626,13.292,13.287,10.0]
[1672898223862,37.626,13.292,13.286,37.642]
[1672898224491,37.626,13.292,13.285,10.07050162]
[1672898224700,112.879,13.292,13.285,10.07050162]
[1672898224911,112.879,13.292,13.286,13.83732108]
[1672898225122,112.879,13.292,13.287,10.0]
[1672898225650,37.626,13.292,13.287,10.0]
[1672898226487,37.626,13.292,13.287,47.64]
[1672898227328,15.02,13.293,13.287,47.64]
[1672898227858,37.629,13.292,13.287,37.639]
[1672898228593,37.628,13.292,13.287,37.639]
[1672898229542,0.06020575,13.294,13.287,37.639]
[1672898229754,0.00020575,13.294,13.289,49.95845811]
[1672898229964,0.00020575,13.294,13.29,47.631]
[1672898230169,0.00020575,13.294,13.291,10.0]
[1672898230379,37.615,13.296,13.292,37.626]
[1672898230588,15.02,13.298,13.293,10.0]
[1672898231960,52.63,13.298,13.294,37.619]
[1672898232171,52.63,13.298,13.295,10.0]
[1672898232693,52.63,13.298,13.293,10.0]
[1672898232905,52.63,13.298,13.292,37.69060782]
[1672898233744,15.02,13.297,13.292,37.69060782]
[1672898233954,37.616,13.296,13.292,37.69060782]
[1672898234163,37.616,13.296,13.292,0.06560782]
[1672898234689,15.02,13.295,13.292,0.06560782]
[1672898234900,37.621,13.294,13.291,37.629]
[1672898235739,37.621,13.294,13.29,37.631]
[1672898235948,37.621,13.294,13.291,10.0]
[1672898237211,37.621,13.294,13.29,47.631]
[1672898237416,37.621,13.294,13.29,37.631]
[1672898238990,52.638,13.295,13.29,37.631]
[1672898239200,0.06575203,13.299,13.292,37.626]
[1672898239732,0.06575203,13.299,13.293,10.0]
[1672898240045,0.06575203,13.299,13.294,112.859]
[1672898240250,0.06575203,13.299,13.295,10.0]
[1672898241722,0.06575203,13.299,13.296,37.614]
[1672898241937,0.0607134,13.302,13.297,10.0]
[1672898242357,15.02,13.307,13.298,112.827]
[1672898242567,112.721,13.311,13.298,112.827]
[1672898242568,15.02,13.311,13.299,59.95845811]
[1672898242780,37.577,13.31,13.302,112.789]
[1672898242983,127.708,13.315,13.303,10.0]
[1672898243405,0.0648334,13.314,13.304,0.07042506]
[1672898244038,37.571,13.312,13.306,37.585]
[1672898244248,0.0648334,13.314,13.307,10.0]
[1672898246033,37.567,13.313,13.307,47.581]
[1672898246771,37.567,13.313,13.307,37.581]
[1672898247400,37.567,13.313,13.308,10.0]
[1672898247611,37.567,13.313,13.308,47.581]
[1672898250449,0.0648334,13.314,13.308,47.581]
[1672898260006,0.0648334,13.314,13.308,122.744]
[1672898260216,37.6308334,13.314,13.308,122.744]
[1672898261063,37.6308334,13.314,13.308,112.744]
[1672898262533,37.6308334,13.314,13.308,37.581]
[1672898263583,37.6308334,13.314,13.308,10.0]
[1672898264213,37.6308334,13.314,13.306,47.586]
[1672898264419,15.02,13.313,13.304,0.07042506]
[1672898264634,37.6308334,13.314,13.304,0.07042506]
[1672898264635,15.02,13.31,13.304,0.07042506]
[1672898264838,15.02,13.313,13.304,37.66142506]
[1672898265052,37.577,13.31,13.304,37.66142506]
[1672898265263,37.577,13.31,13.305,10.0]
[1672898265475,15.02,13.313,13.306,37.585]
[1672898265685,15.02,13.313,13.307,10.0]
[1672898265896,37.573,13.311,13.307,10.0]
[1672898266948,37.573,13.311,13.307,47.583]
[1672898267887,37.573,13.311,13.307,37.583]
[1672898272511,37.573,13.311,13.308,10.0]
[1672898272722,37.573,13.311,13.308,47.58]
[1672898275347,15.02,13.313,13.308,47.58]
[1672898275566,0.0648334,13.314,13.308,122.743]
[1672898275769,0.0048334,13.314,13.308,122.743]
[1672898283031,0.0048334,13.314,13.308,112.743]
[1672898284389,37.5688334,13.314,13.308,37.58]
[1672898284702,15.02,13.313,13.308,37.58]
[1672898285121,0.0048334,13.314,13.308,37.58]
[1672898285332,0.0048334,13.314,13.309,10.0]
[1672898285538,37.571,13.312,13.309,10.0]
[1672898285745,37.571,13.312,13.307,37.65083728]